bitfinex-derivatives/quotes_ETHF0:USTF0_20220108
["timestamp","ask_amount","ask_price","bid_price","bid_amount"]
[1641600672599,1.5,3188.1,3187.3,5.019214]
[1641600672798,2.00479,3188.5,3187.3,5.019214]
[1641600672999,4.95593321,3188.3,3187.3,5.019214]
[1641600673198,4.95593321,3188.3,3187.4,1.54212188]
[1641600673399,4.95593321,3188.3,3187.4,4.67212188]
[1641600673601,4.92593321,3188.1,3187.5,7.023846]
[1641600673802,4.69553321,3188.1,3187.5,7.023846]
[1641600674201,5.33632021,3188.1,3187.6,3.13]
[1641600674603,5.33632021,3188.1,3187.7,5.019056]
[1641600675403,1.5,3187.9,3187.7,5.019056]
[1641600675603,0.6763,3187.9,3187.7,5.019056]
[1641600676403,0.6763,3187.9,3187.7,0.56952595]
[1641600676603,0.6763,3187.9,3187.8,0.14173648]
[1641600677303,0.6763,3187.9,3187.7,0.14173648]
[1641600677506,0.6763,3187.9,3187.6,0.2391028]
[1641600677706,0.6763,3187.9,3187.5,2.00479]
[1641600677905,0.640787,3188.1,3187.5,2.00479]
[1641600678103,5.57705669,3188.1,3187.6,5.019292]
[1641600679104,4.93626969,3188.1,3187.6,5.837292]
[1641600679304,5.79280339,3188.6,3188.0,0.01566384]
[1641600679305,5.64509339,3188.6,3188.0,0.01566384]
[1641600679710,5.64509339,3188.6,3188.5,0.01566181]
[1641600679906,5.64509339,3188.6,3188.5,0.92206181]
[1641600680107,5.18329339,3188.6,3188.5,5.94001581]
[1641600680310,2.33617128,3188.7,3188.5,7.30573879]
[1641600680510,1.61517128,3188.7,3188.5,7.30573879]
[1641600680709,2.00479,3189.3,3188.5,7.30573879]
[1641600680909,3.00578106,3189.3,3188.5,7.30573879]
[1641600681212,6.4043378,3189.7,3188.6,3.13]
[1641600681512,4.0047378,3189.7,3189.6,0.01565599]
[1641600681711,3.0877378,3189.7,3189.6,5.27283599]
[1641600681910,7.40971013,3190.6,3189.6,10.28905999]
[1641600682110,2.20304674,3190.1,3190.0,0.01565411]
[1641600682311,7.40971013,3190.6,3190.0,0.01565411]
[1641600682512,1.00834674,3190.7,3190.0,5.03124911]
[1641600682710,0.76054674,3190.7,3190.0,1.88302106]
[1641600682914,0.21944674,3190.7,3190.0,1.88302106]
[1641600683311,7.31571013,3191.2,3190.1,1.0709745]
[1641600683512,6.70895687,3191.2,3190.1,1.0709745]
[1641600683812,1.5,3191.3,3191.1,2.00479]
[1641600684312,0.264788,3191.4,3191.2,3.90493458]
[1641600684511,0.5023,3191.3,3191.2,3.90493458]
[1641600684711,0.5023,3191.3,3191.2,1.31740455]
[1641600685515,0.5023,3191.3,3190.8,0.30285843]
[1641600685711,1.75499,3191.2,3190.8,0.30285843]
[1641600685912,1.29699,3191.2,3190.9,0.3989]
[1641600686111,6.59453078,3191.4,3191.1,0.01564708]
[1641600686311,6.14453078,3191.4,3191.1,0.01564708]
[1641600686512,5.53053078,3191.4,3191.2,5.013709]
[1641600686813,4.30153078,3191.4,3191.2,5.013709]
[1641600687014,5.61000943,3192.1,3191.3,1.01334495]
[1641600687213,5.61000943,3192.1,3191.2,8.27333836]
[1641600687413,5.61000943,3192.1,3191.4,5.013002]
[1641600687614,3.59434996,3192.4,3192.0,2.00479]
[1641600687814,3.59434996,3192.4,3192.1,0.3989]
[1641600688017,3.59434996,3192.4,3192.1,5.411117]
[1641600688216,3.59434996,3192.4,3192.2,1.28157066]
[1641600688516,3.59434996,3192.4,3192.3,5.01206]
[1641600688717,2.25994105,3192.4,3192.3,5.01206]
[1641600688917,0.640787,3192.5,3192.3,5.01206]
[1641600689116,1.5,3192.4,3192.3,5.01206]
[1641600689417,2.332088,3192.4,3192.2,1.28157066]
[1641600689616,2.0673,3192.4,3192.2,1.28157066]
[1641600689819,2.0673,3192.4,3192.2,1.29721529]
[1641600690625,1.5,3192.4,3192.0,1.43574533]
[1641600691223,1.5,3192.1,3192.0,1.43574533]
[1641600691624,1.5,3192.1,3192.0,1.45139094]
[1641600691821,5.50958,3192.7,3192.0,2.66989995]
[1641600692023,0.03,3192.9,3192.0,8.53205195]
[1641600692222,35.46170891,3193.6,3192.0,8.53205195]
[1641600692223,1.44,3193.2,3192.0,8.53205195]
[1641600692422,1.44,3193.5,3192.8,0.01564164]
[1641600692621,1.44,3193.5,3192.8,0.69784164]
[1641600692824,0.640787,3193.4,3192.9,6.12547982]
[1641600693123,1.44,3193.5,3192.9,6.12547982]
[1641600693323,14.02830911,3193.8,3193.3,0.01563934]
[1641600693521,1.47,3193.8,3193.3,0.01563934]
[1641600693724,0.03,3193.8,3193.7,0.01563717]
[1641600693922,0.03,3193.8,3193.7,0.74043717]
[1641600694125,0.03,3193.8,3193.7,5.734584]
[1641600694322,0.03,3194.7,3193.7,5.75021606]
[1641600694525,1.44,3195.2,3194.0,0.06]
[1641600694722,1.44,3195.5,3195.1,0.01563028]
[1641600694923,6.02099851,3195.6,3195.1,0.79123028]
[1641600695122,35.2359,3195.9,3195.2,4.577095]
[1641600695323,1.44,3195.9,3195.2,4.59272491]
[1641600695522,1.44,3195.9,3195.3,0.3989]
[1641600695728,2.00479,3195.6,3195.3,0.3989]
[1641600696022,1.44,3195.4,3195.2,1.23433295]
[1641600696221,1.44,3195.4,3195.2,1.21870304]
[1641600696421,1.44,3195.4,3195.3,5.007197]
[1641600696822,3.44479,3195.6,3195.3,5.007197]
[1641600697022,1.44,3195.4,3195.3,5.007197]
[1641600697422,1.704788,3195.4,3195.3,5.007197]
[1641600697626,1.704788,3195.4,3194.8,0.01563184]
[1641600697627,3.204788,3195.4,3194.4,0.01563409]
[1641600697825,5.209578,3195.4,3194.4,0.01563409]
[1641600698025,3.769578,3195.4,3194.4,0.01563409]
[1641600698228,1.44,3194.5,3194.4,0.01563409]
[1641600698526,1.44,3194.5,3194.4,5.42322009]
[1641600699427,1.44,3195.2,3194.4,5.42322009]
[1641600699628,2.00479,3194.6,3194.4,5.42322009]
[1641600700227,1.44,3195.0,3194.4,5.42322009]
[1641600701731,2.00479,3195.0,3194.4,5.42322009]
[1641600701932,1.44,3194.9,3194.4,5.42322009]
[1641600702332,1.44,3194.8,3194.4,5.42322009]
[1641600702533,0.264788,3194.9,3194.4,5.42322009]
[1641600702734,1.44,3194.5,3194.4,5.42322009]
[1641600702940,1.44,3194.5,3193.9,0.01563653]
[1641600702941,2.349788,3194.5,3193.9,0.01563653]
[1641600703136,0.909788,3194.5,3193.9,0.01563653]
[1641600703835,1.44,3194.0,3193.9,0.01563653]
[1641600704040,33.6138,3194.9,3193.9,0.01563653]
[1641600704236,1.44,3194.5,3193.9,0.62173653]
[1641600704438,1.44,3194.4,3193.9,0.6061]
[1641600704640,32.8599,3195.3,3193.9,0.6061]
[1641600704839,1.44,3194.4,3193.9,0.6061]
[1641600705038,0.640787,3194.4,3194.2,0.01563494]
[1641600705239,1.44,3194.3,3194.2,0.01563494]
[1641600705640,3.44479,3194.3,3194.2,0.01563494]
[1641600706341,3.709578,3194.3,3194.2,0.01563494]
[1641600708646,2.00479,3194.3,3194.2,0.01563494]
[1641600708846,2.81249,3194.3,3194.2,0.01563494]
[1641600709646,2.81249,3194.3,3193.7,0.4698]
[1641600709846,1.37249,3194.3,3194.2,0.01563485]
[1641600710048,1.37249,3194.3,3194.2,0.92823485]
[1641600710247,2.00479,3195.0,3194.2,0.92823485]
[1641600710451,2.00479,3195.0,3194.7,0.01563247]
[1641600710452,1.42759,3195.0,3194.7,0.01563247]
[1641600710747,1.42759,3195.0,3194.8,0.3989]
[1641600711551,1.42759,3195.0,3194.9,1.0262146]
[1641600711752,1.42759,3195.0,3194.9,1.7516146]
[1641600712151,33.8675,3195.9,3194.9,1.7672451]
[1641600712451,1.3921,3195.7,3194.9,6.7751481]
[1641600712651,1.53,3196.5,3194.9,6.7751481]
[1641600712854,1.3921,3195.7,3194.9,6.7751481]
[1641600713152,1.53,3196.5,3194.9,6.7751481]
[1641600713353,1.3921,3195.6,3194.9,6.7751481]
[1641600713555,0.640787,3195.6,3194.9,6.7751481]
[1641600713855,0.640787,3195.6,3195.5,2.00479]
[1641600714053,1.3921,3195.6,3195.5,2.00479]
[1641600714257,1.3921,3195.6,3195.5,8.19647359]
[1641600714454,1.2218,3195.6,3195.5,8.19647359]
[1641600714654,0.264788,3195.8,3195.5,8.19647359]
[1641600715056,1.2218,3195.6,3195.5,8.19647359]
[1641600715557,1.486588,3195.6,3195.5,8.19647359]
[1641600715756,1.862587,3195.6,3195.5,1.18472159]
[1641600715957,1.862587,3195.6,3195.5,7.359e-05]
[1641600717461,36.025787,3195.6,3195.5,7.359e-05]
[1641600717862,40.035367,3195.6,3195.5,7.359e-05]
[1641600718562,5.872167,3195.6,3195.5,7.359e-05]
[1641600721373,5.23138,3195.6,3195.5,7.359e-05]
[1641600721565,5.09738,3195.6,3195.5,7.359e-05]
[1641600721966,4.00958,3195.6,3195.5,7.359e-05]
[1641600722566,3.71908,3195.6,3195.5,7.359e-05]
[1641600722966,3.63218,3195.6,3195.5,7.359e-05]
[1641600723167,3.51658,3195.6,3195.5,7.359e-05]
[1641600725175,3.05238,3195.6,3195.5,7.359e-05]
[1641600725776,2.58308,3195.6,3195.5,7.359e-05]
[1641600726880,1.0878,3195.7,3195.5,7.359e-05]
[1641600727080,0.6294,3195.7,3195.5,7.359e-05]
[1641600727378,31.6643,3196.1,3195.5,7.359e-05]
[1641600727379,0.6294,3195.8,3195.5,7.359e-05]
[1641600727778,2.00479,3196.3,3195.6,5.006806]
[1641600727978,0.03,3196.5,3195.6,5.006806]
[1641600728180,0.03,3196.5,3196.2,0.01562507]
[1641600728378,0.03,3196.5,3196.3,0.3989]
[1641600728578,2.00479,3196.6,3196.3,5.404609]
[1641600728779,31.8241,3197.4,3196.5,0.01562219]
[1641600728980,32.8572,3197.7,3196.5,0.01562219]
[1641600729179,0.0119,3196.6,3196.5,0.01562219]
[1641600729579,1.5,3198.0,3196.5,5.02101819]
[1641600729781,0.0119,3196.6,3196.5,5.02101819]
[1641600730584,0.0119,3196.6,3196.5,4.84001819]
[1641600730784,0.276688,3196.6,3196.2,1.22874662]
[1641600730985,0.264788,3196.6,3196.2,1.22874662]
[1641600731183,0.0119,3196.3,3196.2,1.22874662]
[1641600731385,0.276688,3196.3,3196.2,1.22874662]
[1641600731986,0.276688,3196.3,3196.2,4.662e-05]
[1641600732185,1.776688,3196.3,3195.5,2.47839]
[1641600732384,0.0119,3195.6,3195.5,2.47839]
[1641600733586,0.0119,3195.6,3195.5,2.23055101]
[1641600733884,0.0119,3195.6,3195.5,7.23751301]
[1641600734287,0.0119,3195.6,3195.5,7.25314101]
[1641600734485,0.0119,3195.6,3195.5,7.23751301]
[1641600735386,0.0119,3195.6,3195.5,7.25313994]
[1641600736483,0.0119,3195.6,3195.5,7.23751301]
[1641600736885,0.0119,3195.6,3195.5,7.25314028]
[1641600737385,0.0119,3195.6,3195.5,7.23751301]
[1641600738185,2.00479,3196.4,3195.5,7.23751301]
[1641600738186,1.56669,3196.4,3195.5,7.23751301]
[1641600738385,33.1122,3196.7,3196.2,0.01562537]
[1641600738585,0.03,3197.5,3196.3,0.3989]
[1641600738785,0.03,3197.5,3196.3,5.404453]
[1641600738985,32.9456,3197.9,3196.3,5.404453]
[1641600738986,34.2563,3197.9,3196.3,5.404453]
[1641600739185,34.2563,3197.9,3196.4,1.17331152]
[1641600739387,13.5,3197.8,3196.4,1.17331152]
[1641600739585,13.5,3197.8,3196.8,0.01562244]
[1641600739785,32.7563,3197.9,3196.5,5.004457]
[1641600739985,2.00479,3197.6,3196.9,5.004222]
[1641600740186,2.00479,3197.6,3196.9,0.6928]
[1641600740388,2.00479,3197.6,3197.0,1.25632916]
[1641600740590,2.00479,3197.9,3197.1,0.3989]
[1641600740786,3.30791131,3198.0,3197.7,0.0156177]
[1641600740988,4.30653014,3197.8,3197.7,0.6633177]
[1641600741187,4.30653014,3197.8,3196.9,32.214]
[1641600741385,4.30653014,3197.8,3197.7,5.003518]
[1641600741587,4.30653014,3197.8,3197.7,0.6805]
[1641600741887,4.30653014,3197.8,3197.7,7.688808]
[1641600742086,0.99861883,3197.8,3197.7,7.70442541]
[1641600742286,0.99861883,3197.8,3197.7,8.71326473]
[1641600742688,2.00479,3198.6,3197.7,9.11216473]
[1641600742986,1.41419,3198.6,3198.3,0.01561431]
[1641600743186,0.99861883,3198.7,3197.7,9.188808]
[1641600743387,0.38271883,3198.7,3198.5,0.01561244]
[1641600743587,0.38271883,3198.7,3198.5,0.72181244]
[1641600743787,0.38271883,3198.7,3198.6,5.002188]
[1641600743987,4.38750664,3198.8,3198.6,7.006978]
[1641600744193,4.38750664,3199.2,3198.7,1.41413278]
[1641600744391,3.76580664,3199.2,3199.1,0.01561107]
[1641600744789,3.76580664,3199.2,3199.1,5.41583907]
[1641600744989,3.45580664,3199.2,3199.1,5.41583907]
[1641600745492,0.03,3199.3,3199.1,5.41583907]
[1641600745691,0.03,3199.3,3199.2,1.0404487]
[1641600745891,0.03,3199.3,3199.2,1.9203487]
[1641600746088,0.03,3199.3,3199.2,2.74859238]
[1641600746490,0.03,3199.3,3199.1,0.41451107]
[1641600747091,0.03,3199.3,3198.4,28.20767623]
[1641600747389,0.03,3199.3,3198.5,0.89264031]
[1641600747591,0.03,3199.3,3198.5,1.81284031]
[1641600747791,0.03,3199.3,3198.6,5.001719]
[1641600747991,2.00479,3198.9,3198.6,5.001719]
[1641600748792,2.269578,3198.9,3198.6,5.001719]
[1641600749194,2.269578,3198.9,3198.7,0.01561268]
[1641600749794,2.00479,3198.9,3198.7,0.01561268]
[1641600750798,0.640787,3198.8,3198.7,0.01561268]
[1641600750998,0.905575,3198.8,3198.7,0.01561268]
[1641600751697,0.905575,3198.8,3198.5,0.89264031]
[1641600751899,2.910365,3198.8,3198.5,0.89264031]
[1641600752498,2.00479,3198.8,3198.5,0.89264031]
[1641600752698,2.00479,3198.8,3197.6,27.36011826]
[1641600752899,2.00479,3198.8,3198.0,1.162968]
[1641600753097,0.905575,3198.7,3198.0,1.162968]
[1641600753299,0.905575,3198.7,3198.1,4.5115033]
[1641600753497,0.905575,3198.7,3198.3,0.01561487]
[1641600753698,0.905575,3198.7,3198.6,0.01561275]
[1641600754400,0.264788,3198.7,3198.6,1.29652671]
[1641600754597,0.264788,3198.7,3198.6,1.31214007]
[1641600754797,2.00479,3198.8,3198.6,1.31214007]
[1641600755799,2.269578,3198.8,3198.6,1.31214007]
[1641600756200,1.5,3198.7,3198.2,0.01561541]
[1641600756500,1.5,3198.3,3197.7,0.01561795]
[1641600756901,1.764788,3198.2,3197.7,0.01561795]
[1641600757300,1.764788,3198.2,3197.7,1.34443781]
[1641600757498,0.640787,3198.1,3197.7,1.34443781]
[1641600757699,0.264788,3198.0,3197.7,1.34443781]
[1641600757899,4.00958,3197.8,3197.7,1.34443781]
[1641600758100,4.00958,3197.8,3197.7,1.32881986]
[1641600758300,4.00958,3197.8,3197.4,0.4704]
[1641600758301,4.274368,3197.8,3197.4,0.4704]
[1641600758503,1.5,3197.6,3197.4,0.4704]
[1641600758699,1.5,3197.6,3197.4,0.0001]
[1641600758900,0.264788,3197.5,3197.4,0.0001]
[1641600759099,0.264788,3197.5,3196.6,0.01562334]
[1641600759299,0.264788,3197.5,3196.7,1.52953735]
[1641600759600,0.640787,3197.4,3196.7,1.52953735]
[1641600759799,0.640787,3197.4,3196.7,1.54516013]
[1641600759998,2.00479,3196.8,3196.7,1.54516013]
[1641600762401,1.53479,3196.8,3196.7,1.54516013]
[1641600763602,0.640787,3197.4,3196.7,1.54516013]
[1641600763603,5.5e-05,3197.4,3196.7,1.54516013]
[1641600763803,0.264787,3197.3,3196.7,2.46136013]
[1641600764005,2.00479,3197.1,3196.7,2.46136013]
[1641600764205,2.00479,3197.1,3196.7,2.72614813]
[1641600764406,0.178177,3197.3,3197.0,0.01562046]
[1641600765606,0.178177,3197.3,3196.7,2.44573735]
[1641600765807,0.178177,3197.3,3196.7,2.46136018]
[1641600766010,0.178177,3197.3,3196.7,4.46615018]
[1641600766307,0.178177,3197.3,3196.7,4.72872203]
[1641600767208,0.178177,3197.3,3197.1,0.01562056]
[1641600767412,0.178177,3197.3,3197.2,1.48694813]
[1641600770114,15.178177,3197.3,3194.3,0.45]
[1641600770311,15.178177,3197.3,3195.1,65.5926]
[1641600770312,1.5,3196.6,3195.1,65.5926]
[1641600770513,0.8804,3196.6,3195.1,65.5926]
[1641600770712,0.818964,3196.5,3195.1,65.5926]
[1641600771114,1.5,3196.4,3196.3,0.0001]
[1641600771314,1.5,3196.4,3195.6,0.0156281]
[1641600771515,1.5,3195.8,3195.1,0.01563064]
[1641600771713,1.5,3195.8,3194.5,0.4923]
[1641600771714,1.5,3195.5,3194.7,0.01563243]
[1641600771913,1.678177,3195.4,3194.7,0.01563243]
[1641600772114,1.5,3195.1,3194.7,1.56925381]
[1641600772315,0.8763,3195.1,3194.7,1.56925381]
[1641600772516,0.178177,3195.0,3194.7,1.56925381]
[1641600772714,0.640787,3194.9,3194.7,1.56925381]
[1641600772916,0.178177,3194.8,3194.7,1.56925381]
[1641600773315,0.178177,3194.8,3194.5,0.77490733]
[1641600773518,0.178177,3194.8,3194.5,1.25590733]
[1641600774318,0.178177,3194.8,3194.7,0.01563238]
[1641600774516,0.178177,3194.8,3194.7,1.54165779]
[1641600776719,1.678177,3194.8,3192.9,0.4679]
[1641600776918,1.5,3194.5,3192.9,0.4679]
[1641600777722,1.5,3194.5,3193.6,1.48609994]
[1641600778120,2.00479,3193.8,3193.6,1.48609994]
[1641600778319,0.640787,3193.7,3193.6,1.48609994]
[1641600779525,0.640787,3193.7,3193.6,1.08399313]
[1641600780230,1.67449,3193.8,3193.6,1.09963086]
[1641600780436,33.5858,3195.1,3193.6,1.09963086]
[1641600780437,3.95778475,3194.5,3193.7,0.01563631]
[1641600780628,3.95778475,3194.5,3194.4,0.01563411]
[1641600780826,4.13596175,3194.5,3194.4,0.83213411]
[1641600781228,4.13596175,3194.5,3194.4,0.8165]
[1641600781428,0.178177,3194.5,3194.4,0.88912582]
[1641600781630,1.678177,3194.5,3194.4,0.88912582]
[1641600781827,1.678177,3194.5,3194.4,0.88902582]
[1641600782026,5.687757,3194.5,3194.4,0.88902582]
[1641600782228,5.687757,3194.5,3193.5,0.031]
[1641600782428,4.906357,3194.5,3193.5,0.031]
[1641600783431,4.906357,3194.5,3193.6,1.18767274]
[1641600783631,4.187757,3194.5,3193.6,1.18767274]
[1641600784030,4.00958,3193.7,3193.6,1.18767274]
[1641600784230,4.00958,3193.7,3193.6,1.20330979]
[1641600784930,4.00958,3193.7,3193.6,1.46809779]
[1641600785131,4.00958,3193.7,3193.6,1.46809803]
[1641600786331,4.00958,3193.7,3193.6,1.10411503]
[1641600789234,4.00958,3193.7,3193.6,0.83932703]
[1641600789433,4.187757,3193.7,3193.6,0.83932703]
[1641600789636,3.95778475,3194.9,3193.6,1.10411503]
[1641600790037,3.95778475,3194.9,3194.3,0.01563441]
[1641600790235,2.00479,3194.4,3194.3,0.01563441]
[1641600790836,2.00479,3194.4,3194.3,0.80050993]
[1641600791036,2.00479,3194.4,3194.3,0.78487552]
[1641600791836,2.00479,3194.4,3194.3,0.61792861]
[1641600792638,2.00479,3194.4,3194.3,0.33273489]
[1641600793841,2.00479,3194.4,3194.3,0.59752289]
[1641600794642,1.95899,3194.4,3194.3,0.59752289]
[1641600794843,2.645577,3194.6,3194.3,0.61315683]
[1641600794844,2.00479,3194.6,3194.3,0.61315683]
[1641600795042,3.95778475,3195.3,3194.3,1.35695683]
[1641600795445,3.95778475,3195.3,3194.4,5.008138]
[1641600795744,3.95778475,3195.4,3194.4,5.008138]
[1641600796143,3.95778475,3195.4,3194.8,0.01563169]
[1641600796443,2.00479,3195.0,3194.9,0.264788]
[1641600796643,1.91959,3195.0,3194.9,0.264788]
[1641600796847,0.92804788,3195.7,3194.9,1.78041679]
[1641600797045,0.20244788,3195.7,3195.4,1.5]
[1641600797245,0.20244788,3195.7,3195.5,1.764788]
[1641600797446,4.43636205,3195.8,3195.5,6.77175]
[1641600797749,3.95107769,3196.1,3195.5,5.27175]
[1641600797945,3.95107769,3196.1,3195.6,0.82987669]
[1641600798146,3.95107769,3196.1,3195.7,0.264788]
[1641600798348,3.86847769,3196.1,3196.0,2.00479]
[1641600798548,3.86847769,3196.1,3196.0,2.645522]
[1641600798748,4.2861378,3197.0,3196.0,9.43211317]
[1641600798947,3.2751378,3197.0,3196.7,1.5]
[1641600799147,2.5061378,3197.0,3196.8,0.264788]
[1641600799347,0.99882608,3197.0,3196.8,5.269714]
[1641600799550,0.91262608,3197.0,3196.8,0.83048697]
[1641600799750,0.91262608,3197.0,3196.8,0.08661]
[1641600799952,0.91262608,3197.0,3196.9,0.82991045]
[1641600800355,0.91262608,3197.0,3196.9,2.83470045]
[1641600800551,0.640787,3197.2,3196.9,2.83470045]
[1641600800955,0.264788,3197.1,3196.9,2.83470045]
[1641600801151,1.5,3197.0,3196.9,0.17918018]
[1641600801551,0.6594,3196.8,3194.4,3.145]
[1641600801850,1.5,3196.5,3195.7,0.01562732]
[1641600802050,1.5,3196.5,3194.3,0.4768]
[1641600802051,1.5,3196.1,3194.3,0.4768]
[1641600802250,2.00479,3195.9,3194.9,2.00479]
[1641600802652,2.00479,3195.9,3195.1,0.01563054]
[1641600802851,0.640787,3195.8,3195.2,0.727342]
[1641600803051,0.264788,3195.7,3195.2,0.727342]
[1641600803253,0.264788,3195.7,3195.2,0.08661]
[1641600803455,0.264788,3195.7,3195.1,0.01563054]
[1641600803654,0.264788,3195.7,3195.2,1.12810287]
[1641600804453,0.640787,3195.8,3195.2,1.21471287]
[1641600804653,0.905575,3195.8,3195.2,1.21471287]
[1641600805255,0.905575,3195.8,3195.2,1.85544487]
[1641600807357,0.264788,3195.8,3195.2,1.85544487]
[1641600807957,2.00479,3195.9,3195.5,0.01562859]
[1641600808157,2.00479,3195.9,3195.8,0.01562654]
[1641600808357,2.00479,3196.2,3195.8,0.01562654]
[1641600808561,2.00479,3196.2,3195.9,0.640732]
[1641600808762,2.00479,3196.2,3196.0,0.08661]
[1641600808958,2.00479,3196.2,3196.1,1.23777855]
[1641600810159,2.00479,3196.2,3196.1,0.91754992]
[1641600813160,2.269578,3196.2,3196.1,0.91754992]
[1641600815764,2.269578,3196.2,3196.1,0.55494496]
[1641600818469,2.269578,3196.2,3196.1,0.69597613]
[1641600819771,6.71278632,3196.2,3196.1,0.69597613]
[1641600821172,6.44799832,3196.2,3196.1,0.69597613]
[1641600821773,6.44799832,3196.2,3196.1,0.2467279]
[1641600823974,6.24889832,3196.2,3196.1,0.2467279]
[1641600824573,6.24889832,3196.2,3196.1,0.9673279]
[1641600824974,5.99799832,3196.2,3196.1,0.9673279]
[1641600825174,5.53679832,3196.2,3196.1,0.9673279]
[1641600825573,4.44320832,3196.2,3196.1,0.9673279]
[1641600825775,6.94289641,3196.7,3196.1,0.98295249]
[1641600825776,4.93810641,3196.7,3196.1,0.98295249]
[1641600825974,4.68790641,3196.7,3196.2,0.08661]
[1641600826375,4.68790641,3196.7,3196.6,2.00479]
[1641600826574,4.68790641,3196.7,3196.6,2.645522]
[1641600826774,4.68790641,3196.7,3196.6,3.62975673]
[1641600826978,4.68790641,3196.7,3196.6,3.7707879]
[1641600827176,4.59180641,3196.7,3196.6,3.7707879]
[1641600827475,2.00479,3197.3,3196.6,2.9942533]
[1641600827675,0.905575,3197.2,3196.6,2.9942533]
[1641600827875,0.264788,3197.2,3196.7,0.22764117]
[1641600828485,0.264788,3197.2,3196.6,1.66153265]
[1641600828878,0.264788,3197.2,3196.8,0.14109932]
[1641600829077,0.264788,3197.2,3196.8,1.01649932]
[1641600829278,0.264788,3197.2,3196.8,0.8754]
[1641600829481,0.264788,3197.2,3196.9,0.0156217]
[1641600829880,2.00479,3197.3,3196.9,0.0156217]
[1641600830480,0.03,3197.5,3197.1,0.01562046]
[1641600830881,5.31245059,3197.6,3197.2,5.004222]
[1641600831081,5.31245059,3197.6,3197.3,0.640732]
[1641600831484,4.86245059,3197.6,3197.5,0.01561878]
[1641600831682,1.68379,3197.7,3197.5,0.7121]
[1641600831883,1.68379,3197.7,3197.5,5.715931]
[1641600832085,1.64739,3197.7,3197.5,5.715931]
[1641600832281,1.64739,3197.7,3197.6,0.94584296]
[1641600833182,2.00479,3198.2,3197.6,0.06898007]
[1641600833381,1.41269,3198.2,3197.6,0.06898007]
[1641600833782,1.41269,3198.2,3197.7,5.003283]
[1641600834182,1.41269,3198.2,3197.7,4.67521823]
[1641600834381,1.41269,3198.2,3197.6,0.06898007]
[1641600834583,1.41269,3198.2,3197.7,2.00479]
[1641600834786,7.78623806,3198.8,3198.0,0.01561644]
[1641600834982,7.78623806,3198.8,3198.3,0.01561424]
[1641600834983,5.78144806,3198.8,3198.3,0.01561424]
[1641600835183,5.78144806,3198.8,3198.3,0.79481424]
[1641600835782,4.83384806,3198.8,3198.3,0.79481424]
[1641600836289,5.71710387,3199.3,3198.3,0.79481424]
[1641600836489,1.33196048,3199.0,3198.7,2.00479]
[1641600836889,1.33196048,3199.0,3198.7,3.44813389]
[1641600837088,1.33196048,3199.0,3198.7,4.08886589]
[1641600838492,2.00479,3199.5,3198.8,0.01561232]
[1641600838693,0.264788,3199.4,3198.4,0.80124332]
[1641600839593,2.00479,3199.5,3198.4,0.80124332]
[1641600839794,0.56900457,3198.4,3198.3,0.7792]
[1641600839992,0.56900457,3198.4,3198.3,2.2792]
[1641600840193,5.7742417,3199.7,3198.3,7.281779]
[1641600840393,5.7152417,3199.7,3198.5,1.5]
[1641600840596,3.33675048,3199.8,3199.2,2.00479]
[1641600840795,2.00479,3199.8,3199.2,2.00479]
[1641600840994,2.00479,3199.8,3199.7,0.01560732]
[1641600841396,2.00479,3199.8,3198.1,34.2194]
[1641600841397,17.00479,3199.8,3199.0,0.01560978]
[1641600841594,1.5,3199.4,3198.1,1.5]
[1641600841795,17.64419,3199.8,3198.1,1.5]
[1641600841996,17.64419,3199.8,3198.7,0.01561297]
[1641600842195,4.14419,3199.8,3198.7,0.01561297]
[1641600842396,2.64419,3199.8,3198.7,0.01561297]
[1641600842600,2.00479,3199.1,3198.7,0.01561297]
[1641600842795,13.764788,3199.0,3198.4,0.01561439]
[1641600842996,1.5,3198.5,3198.4,0.01561439]
[1641600843196,0.640787,3198.4,3197.6,0.4597]
[1641600843396,0.264788,3198.3,3197.6,0.4597]
[1641600843896,32.0941,3199.0,3197.7,1.98678271]
[1641600844096,2.00479,3199.1,3197.7,1.98678271]
[1641600844296,2.00479,3199.1,3197.7,1.97204476]
[1641600844497,2.00479,3198.2,3197.7,1.95642874]
[1641600844696,2.00479,3198.2,3197.8,5.002501]
[1641600844898,2.00479,3198.2,3197.9,0.234434]
[1641600845101,2.00479,3198.2,3197.7,1.72199471]
[1641600845298,2.645577,3198.2,3197.9,0.01561668]
[1641600845498,0.264788,3198.1,3197.9,0.01561668]
[1641600845796,1.001588,3198.1,3197.9,0.01561668]
[1641600846998,0.264788,3198.1,3197.9,0.01561668]
[1641600848800,4.45096119,3198.8,3198.0,0.015615]
[1641600849001,0.264788,3198.7,3198.0,1.279327]
[1641600849603,0.264788,3198.7,3198.1,0.234434]
[1641600850205,0.264788,3198.7,3198.1,0.10650131]
[1641600850605,2.269578,3198.7,3198.1,0.10650131]
[1641600850805,2.269578,3198.7,3198.2,1.11504447]
[1641600851208,4.410365,3198.7,3198.2,1.11504447]
[1641600851609,2.910365,3198.7,3198.2,1.11504447]
[1641600852815,4.45096119,3198.5,3198.2,1.11504447]
[1641600853413,0.264788,3198.4,3198.2,1.11504447]
[1641600853614,3.82886119,3198.5,3198.3,0.01561373]
[1641600853814,4.94567614,3199.0,3198.4,0.01561188]
[1641600854015,4.94567614,3199.1,3198.5,1.5]
[1641600854214,4.94567614,3199.1,3198.5,0.106502]
[1641600854615,4.94567614,3199.1,3198.6,2.00479]
[1641600854815,4.94567614,3199.1,3198.7,0.106502]
[1641600855015,4.94567614,3199.1,3198.8,1.5]
[1641600855218,0.87196048,3199.6,3199.0,0.01560993]
[1641600855515,13.5,3200.8,3199.2,1.5]
[1641600855516,6.01973326,3200.0,3199.2,1.5]
[1641600855716,4.95111186,3199.5,3199.1,4.26511338]
[1641600855915,6.01973326,3200.0,3199.3,5.14130021]
[1641600856116,6.01973326,3200.0,3199.3,0.14083221]
[1641600856515,0.264788,3199.9,3199.6,2.00479]
[1641600857419,0.264788,3199.9,3199.3,2.00479]
[1641600857617,1.764788,3199.9,3197.8,32.3288]
[1641600857820,1.764788,3199.9,3198.3,0.01561478]
[1641600858018,1.764788,3199.9,3198.4,0.01561431]